Cogmind - Beta 11 X6 @@@ ROGUE MODE // 2021.07.24 @ 14:43:24 Player: Terminus Result: Destroyed by G-47 Trooper with Particle Gun Performance ------------- Evolutions (0) 0 Regions Visited (2) 400 Robots Destroyed (23) 115 Value Destroyed (435) 435 Prototype IDs (1) 20 Alien Tech Used (0) 0 Bonus (0) 0 TOTAL SCORE: 970 Bonus ------- None Cogmind --------- Core Integrity 0/250 Matter 290/300 Energy 255/280 System Corruption 0% Temperature Cool (40) Movement Walking (200) Ox1 Location -10/Mines Parts ------- > --- POWER (1) -------- Heavy Ion Engine > --- PROPULSION (2) --- Aluminum Leg Aluminum Leg > --- UTILITY (2) ------ Heat Sink Large Storage Unit > --- WEAPON (2) ------- Medium Laser Small Laser > --- INVENTORY (15) --- Ion Engine Heavy Ion Engine Aluminum Leg Aluminum Leg Heat Sink Heat Sink Light Armor Plating Light Armor Plating Improved Light Armor Plating Improved Light Armor Plating Hacking Suite Small Laser Light Assault Rifle Peak State ------------ > --- POWER ------------ Heavy Ion Engine > --- PROPULSION ------- Aluminum Leg Aluminum Leg > --- UTILITY ---------- Heat Sink Large Storage Unit > --- WEAPON ----------- Medium Laser Small Laser > --- INVENTORY -------- Ion Engine Heavy Ion Engine Heat Sink Heat Sink Light Armor Plating Light Armor Plating Improved Light Armor Plating Improved Light Armor Plating Hacking Suite Medium Laser Small Laser Light Assault Rifle [Rating: 11] Favorites ----------- Power Heavy Ion Engine Engine Heavy Ion Engine Propulsion Aluminum Leg Leg Aluminum Leg Utility Heat Sink Device Heat Sink Storage Large Storage Unit Weapon Medium Laser Energy Gun Medium Laser Build | -11 -10 -10 ------- Run | Scr Mat Min Slots Evolved . | . . . Power . | . . . Propulsion . | . . . Utility . | . . . Weapon . | . . . Parts Attached 19 | 6 8 5 Power 2 | 1 1 . Engine 2 | 1 1 . Core . | . . . Reactor . | . . . Propulsion 7 | 2 2 3 Treads . | . . . Leg 7 | 2 2 3 Wheel . | . . . Hover . | . . . Flight . | . . . Utility 6 | 1 4 1 Device 3 | . 2 1 Storage 3 | 1 2 . Processor . | . . . Hackware . | . . . Protection . | . . . Artifact . | . . . Weapon 4 | 2 1 1 Energy Gun 4 | 2 1 1 Energy Cannon . | . . . Ballistic Gun . | . . . Ballistic Cannon . | . . . Launcher . | . . . Special Weapon . | . . . Impact Weapon . | . . . Slashing Weapon . | . . . Piercing Weapon . | . . . Special Melee Weapon . | . . . Unidentified Prototypes 1 | . 1 . Parts Lost 5 | . 2 3 Power 1 | . 1 . Propulsion 2 | . . 2 Utility 1 | . 1 . Weapon 1 | . . 1 Highest Loss Streak 2 | . 1 2 Average Slot Usage (%) 98 | . 96 99 Engine 14 | . 14 14 Leg 27 | . 28 27 Device 12 | . 11 14 Storage 14 | . 14 14 Energy Gun 28 | . 28 28 Naked Turns . | . . . Heaviest Build 32 | 13 32 32 Greatest Support 20 | 20 20 20 Greatest Overweight (x) 2 | 2 1 1 Average Overweight (x) . | . . 1 Largest Inventory Capacity 15 | 8 15 15 Average Capacity 12 | 6 10 15 Most Carried 15 | 2 12 15 Average Carried 9 | 1 8 12 Final Capacity 15 | 8 15 15 Final Carried 13 | 2 12 13 Class Distribution -------------------- 100% | Mutant Dominant Class ---------------- Mutant | -10/Materials Mutant | -10/Mines Resources | -11 -10 -10 ----------- Run | Scr Mat Min Matter Collected 380 | 252 83 45 Remotely . | . . . Salvage Created 729 | . 706 23 Parts 43 | . 39 4 Haulers Intercepted 2 | . 2 . Recyclers Shooed 3 | . 3 . Parts Field Recycled . | . . . Retrieved Matter . | . . . Parts Self-Destructed . | . . . Prevented . | . . . Kills | -11 -10 -10 ------- Run | Scr Mat Min Combat Hostiles Destroyed 17 | . 15 2 Guns 17 | . 15 2 Classes Destroyed 6 | . 6 . Tunneler 1 | . 1 . Hauler 2 | . 2 . Recycler 1 | . 1 . Watcher 2 | . 2 . Swarmer 8 | . 6 2 Grunt 9 | . 9 . Best Kill Streak 4 | . 4 2 Combat Bots Only 3 | . 3 2 Max Kills in Single Turn 2 | . 2 1 Gunslinging . | . . . Exploded . | . . . Melee . | . . . Uniques/NPCs Destroyed . | . . . Combat | -11 -10 -10 -------- Run | Scr Mat Min Damage Taken 853 | . 536 317 Core 250 | . 152 98 Absorbed by Shields . | . . . Core Remaining (%) 100 | 100 . . Volleys Fired 102 | . 84 18 Largest 2 | . 2 2 Hottest 90 | . 90 90 Shots Fired 203 | . 167 36 Gun 203 | . 167 36 Cannon . | . . . Launcher . | . . . Special . | . . . Kinetic . | . . . Thermal 203 | . 167 36 Explosive . | . . . Electromagnetic . | . . . Robot Hit Streak 15 | . 15 8 Robot Miss Streak 7 | . 6 7 Penetration Max . | . . . Secondary Targets 1 | . 1 . Max Gunslinging Chain 1 | . 1 . Shots Hit Robots 122 | . 105 17 Core Hits 41 | . 38 3 Critical Kills . | . . . Critical Parts Destroyed . | . . . Critical Strikes 4 | . 3 1 Burn 4 | . 3 1 Melee Attacks . | . . . Impact . | . . . Slashing . | . . . Piercing . | . . . Sneak Attacks . | . . . Combat Hostiles . | . . . Follow-up Attacks . | . . . Damage Inflicted 1532 | . 1318 214 Guns 1512 | . 1315 197 Cannons . | . . . Explosions . | . . . Melee . | . . . Ramming 20 | . 3 17 Kinetic . | . . . Thermal 1512 | . 1315 197 Explosive . | . . . Electromagnetic . | . . . Impact . | . . . Slashing . | . . . Piercing . | . . . Highest Corruption . | . . . Average Corruption . | . . . Corruption Purged . | . . . Overload Shots . | . . . Overflow Damage . | . . . Projectiles . | . . . Explosions . | . . . Melee . | . . . Knockbacks . | . . . Impact . | . . . Kinetic . | . . . Secondary . | . . . Self-Inflicted Damage . | . . . Shots . | . . . Rammed . | . . . Targets Rammed 6 | . 1 5 Kicked 6 | . 1 5 Crushed . | . . . Highest Temperature 220 | . 220 60 Average Temperature 30 | . 34 12 Received Heat Transfer 300 | . 246 54 Siege Activations . | . . . Robots Corrupted . | . . . Combat Hostiles . | . . . Parts Fried . | . . . Impact Corruptions . | . . . Robots Melted . | . . . Combat Hostiles . | . . . Parts Melted 7 | . 7 . Heat Transferred 4277 | . 3706 571 Parts Sabotaged . | . . . Parts Stolen . | . . . Parts Stripped . | . . . Power Chain Reactions . | . . . Missiles Intercepted . | . . . Alert | -11 -10 -10 ------- Run | Scr Mat Min Peak Influence 279 | . 279 87 Initial 57 | . . 57 Average 70 | . 100 35 Maximum Alert Level 1 | . 1 . Low Security (%) 95 | 100 91 100 Level 1 4 | . 8 . Level 2 . | . . . Level 3 . | . . . Level 4 . | . . . Level 5 . | . . . High Security . | . . . Max Security . | . . . Squads Dispatched 4 | . 3 1 Investigation 2 | . 1 1 Extermination . | . . . Reinforcement 2 | . 2 . Assault . | . . . Garrison . | . . . Intercept . | . . . Construction Impeded . | . . . Haulers Reinforced . | . . . Active Scanning Responses . | . . . Cargo Convoy Interrupts . | . . . Stealth | -11 -10 -10 --------- Run | Scr Mat Min Distress Signals 5 | . 5 . Communications Jammed . | . . . Distress Signals . | . . . Times Spotted 44 | . 38 6 Peak Tracking Total 5 | . 5 3 Tactical Retreats 6 | . 6 . Traps | -11 -10 -10 ------- Run | Scr Mat Min Traps Triggered 2 | . 2 . Indirectly . | . . . Trap Hack Attempts . | . . . Triggered . | . . . Disarmed . | . . . Reprogrammed . | . . . Reused . | . . . Traps Extracted . | . . . Installed . | . . . Triggered . | . . . Machines | -11 -10 -10 ---------- Run | Scr Mat Min Machines Disabled . | . . . Max in Single Turn . | . . . Machines Sabotaged . | . . . Garrisons Compromised . | . . . Overloaded Fab Kills . | . . . Fab Network Shutdowns . | . . . Hacking | -11 -10 -10 --------- Run | Scr Mat Min Machines Accessed 5 | . 4 1 Terminals 4 | . 4 . Fabricators . | . . . Repair Stations . | . . . Recycling Units . | . . . Scanalyzers . | . . . Garrison Access . | . . . Total Hacks 16 | . 15 1 Successful 11 | . 10 1 Failed 5 | . 5 . Catastrophic 1 | . 1 . Database Lockouts . | . . . Manual 11 | . 11 . Terminals 15 | . 15 . Fabricators . | . . . Repair Stations . | . . . Recycling Units . | . . . Scanalyzers . | . . . Garrison Access . | . . . Terminal Hacks 8 | . 7 1 Open Door 1 | . . 1 Terminal Index 1 | . 1 . Alert Level 1 | . 1 . Unreport Threat 1 | . 1 . Hauler Manifests 1 | . 1 . Zone Layout 3 | . 3 . Fabricator Hacks . | . . . Repair Station Hacks . | . . . Recycling Unit Hacks . | . . . Scanalyzer . | . . . Garrison Access Hacks . | . . . Unauthorized Hacks 3 | . 3 . Terminals 3 | . 3 . Botnet 3 | . 3 . Fabricators . | . . . Repair Stations . | . . . Recycling Units . | . . . Scanalyzers . | . . . Garrison Access . | . . . Data Cores Recovered . | . . . Used . | . . . Hacking Detections 4 | . 4 . Full Trace Events . | . . . Feedback Events . | . . . Feedback Blocked . | . . . Robot Schematics Acquired . | . . . Robots Built . | . . . Matter . | . . . Time . | . . . Total Robot Build Rating . | . . . Part Schematics Acquired . | . . . Parts Built . | . . . Matter . | . . . Time . | . . . Total Part Build Rating . | . . . Parts Repaired . | . . . Time . | . . . Parts Recycled . | . . . Recycled Matter . | . . . Retrieved Matter . | . . . Retrieved Components . | . . . Parts Scanalyzed . | . . . Part Schematics Acquired . | . . . Parts Damaged . | . . . Bothacking | -11 -10 -10 ------------ Run | Scr Mat Min Used RIF Installer . | . . . Robots Hacked . | . . . Non-combat . | . . . Combat . | . . . Robot Hacks Applied . | . . . Relay Couplers Released . | . . . Robots Rewired . | . . . Allies Hacked . | . . . Hacks Repelled . | . . . Allies | -11 -10 -10 -------- Run | Scr Mat Min Total Allies . | . . . Largest Group . | . . . Highest-Rated Group . | . . . Highest-Rated Ally . | . . . Total Orders . | . . . Ally Attacks . | . . . Total Damage . | . . . Kills . | . . . Allies Corrupted . | . . . Allies Melted . | . . . Intel | -11 -10 -10 ------- Run | Scr Mat Min Robot Analysis Total . | . . . Derelict Logs Recovered . | . . . Drone Launches . | . . . Drone Recoveries . | . . . Exploration | -11 -10 -10 ------------- Run | Scr Mat Min Turns Passed 2111 | 56 1168 887 Spaces Moved 935 | 46 482 407 Core 17 | 17 . . Treads . | . . . Legs 918 | 29 482 407 Wheels . | . . . Hover . | . . . Flight . | . . . Fastest Speed 50 | 50 120 200 Average Speed 167 | 98 147 200 Slowest Speed 200 | 150 200 200 Overloaded Moves . | . . . Propulsion Burnouts . | . . . Robots Hopped . | . . . Cave-ins Triggered . | . . . Exploration Rate (%) 49 | 4 63 81 Regions Visited 2 Branch Regions 1 Pre-discovered Areas . | . . . Known Exits Taken . | . . . Unknown Exits Taken 2 | 1 1 . Scrap Searched 2 | . . 2 Spaces Dug . | . . . Terrain Destroyed . | . . . Melee . | . . . Projectile . | . . . AOE . | . . . Terrain Rammed . | . . . Walls Destroyed . | . . . Machines Disabled . | . . . Actions | -11 -10 -10 --------- Run | Scr Mat Min Total 1268 | 53 773 442 Wait 184 | . 183 1 Move 933 | 45 481 407 Hop . | . . . Pick Up 16 | 2 10 4 Fast Attach 11 | 6 5 . Attach 3 | . . 3 Detach . | . . . Swap 6 | . 4 2 Drop 7 | . 5 2 Fire 102 | . 84 18 Melee . | . . . Ram . | . . . Kick 6 | . 1 5 Crush . | . . . Escape Stasis . | . . . Rewire . | . . . Trap . | . . . Miscellaneous . | . . . Route ------- -11/Scrapyard -10/Materials (discovered 4 exits: [*Mat x2] / *Min x2) -10/Mines (discovered 1 exit: [*Mat]) History --------- Turn | Location | Event 2 | -11/Scrapyard | Met Revision 17 10 | -11/Scrapyard | Discovered new exit (range 15) 57 | -11/Scrapyard | Entered Materials 304 | -10/Materials | Build established: Mutant 564 | -10/Materials | Discovered new exit (range 15) 596 | -10/Materials | Discovered new exit (range 16) 860 | -10/Materials | Core integrity fell below 50% 1157 | -10/Materials | Discovered new exit (range 13) 1201 | -10/Materials | Discovered new exit (range 12) 1225 | -10/Materials | Entered Mines 1324 | -10/Mines | Core integrity fell below 20% 1622 | -10/Mines | Met a Derelict shopkeep closing up shop 1707 | -10/Mines | Discovered new exit (range 6) 2112 | -10/Mines | Destroyed by G-47 Trooper with Particle Gun Last Messages --------------- 01624_ ALERT: Derelict activity detected in mines. Dispatching investigation squad. 01626_ R7-W2Z(g): "Take whatever you can and run for it!" 01631_ Acquired Imp. Light Armor Plating. 01658_ K-01 Serf collects debris. 01661_ G-34 Mercenary destroyed. 01675_ Acquired Aluminum Leg. 01687_ Acquired 10 matter. 01691_ Dropped Aluminum Leg. 01692_ Dropped Heat Sink. 01707_ EXIT=FOUND 01739_ Acquired 10 matter. 01865_ Kicked K-01 Serf out of the way. 02055_ Kicked U-05 Engineer. 02103_ K-01 Serf destroyed. 02108_ G-34 Mercenary suffers critical hit (Burn). 02108_ G-34 Mercenary overheating. 02110_ G-34 Mercenary heat short circuits Aluminum Leg. 02110_ Med. Laser destroyed. 02112_ G-34 Mercenary overheating. Map ----- +----------------------------------------------------+ | | | | | | | | | | | ???????????????????????????????????????????? | | ???????????????????????????????????????????? | | ???????????????????????????????????????????? | | ???????????????????????????????????????????? | | ??####?????????????????????????????????????? | | ?## ##????????????????? ?????????????????? | | ## ##???????????????? ?????????????????? | | # #???????????????# ?????????????????? | | # #???????????????# #????????????????? | | # #???????????????# ##???????????????? | | ####??????????????? g ##??????????????? | | ##?????????????????? g #??????????????? | | ##??????????????????#= #??????????????? | | #??????????????????#% #??????????????? | | ##?????????????????# #???????####????? | | # #????????????###### #???????## ##???? | | # ##??????????## ## #???????# ##??? | | # #??????????# #????????# ##?? | | ## ##?????????# ##??????## #?? | | ?## ####?????## #???#### #?? | | ??## ####?## @ #??## #?? | | ???# ### #### ##?? | | ???# u ## ##??? | | ???## ##??? | | #???## ##?? | | ##???## #?? | | #????# ### ## ##? | | ###### #### ### #? | | % #?### #### #? | | #???## ##??##### ### #? | | ##############????####???????#####?# #? | | ##??????########???????????????????# #? | | ##?????#""""""#???????????????????# #? | | #####?# !!! /#???????????????????# ##? | | #?## ##???????????????????# #?? | | ### #??#! ]#???????????????????##% ##?? | | #?# #?### ###????????????????### #??? | | ##?# #?# X ##??????????????## #??? | | ###??# ### #??????????????# #??? | | ?????# ####???????????# #??? | | ????###### #???????????## #??? | | ???## ### ###########??##### ##??? | | ??## ### ### % % %=#???????##???? | | ?## ### ##?# #########!#????????????? | | ## #?####??# #???????# #????????????? | +----------------------------------------------------+ Best States ------------- Heat Dissipation 35 Energy Generation 14 Energy Capacity 280 Matter Stores 300 Matter Capacity 300 Sight Range 16 Terrain Scan Density 10 Evasion (%) 55 Item Schematics ----------------- None Robot Schematics ------------------ None Fabricated ------------ Nothing Alien Tech Used ----------------- None Achievements -------------- None Challenges ------------ None Game ------ Seed BattleForcePenetrator Manual? 0 Play Time 00:09:15 Cumulative 1329.3 hours Start 2021.07.24 @ 14:36:11 End 2021.07.24 @ 14:43:24 Sessions 1 Manual Loads 0 Difficulty Rogue Special Mode None Game No. 457 Rogue 457 Adventurer 0 Explorer 0 Win Type - Total 94 Types 20/12/37/5/1/2/15/1/1 Lore% 97 Gallery% 96 Achievement% 86 Wizard Run 0 Options --------- ASCII 0 Keyboard 0 Movement Numpad Keybinds 0 Fullscreen 1 Font 18/SmallcapsGlow Map View 76x50 Tactical HUD 1 Map Filters NONE Filters NONE Steam 1 RUN: 757c708e-9f45-4d38-bc4c-0d7fa9f49fc1